[Event "Titled Tuesday Blitz April 11 Late 2023"]
[White "Sarana, Alexey"]
[Black "Baskakov, Egor"]
[WhiteFideId "24133795"]
[BlackFideId "24197866"]
[WhiteElo "2714"]
[BlackElo "2212"]
[Result "1-0"]
[Round "09"]
[TimeControl "180+2"]
[Date "2023.04.11"]
[WhiteClock "0:00:16"]
[BlackClock "0:01:15"]

1. c4 {[%clk 0:02:56]}  Nf6 {[%clk 0:02:59]} 2. Nc3 {[%clk 0:02:56]}  e6 {[%clk 0:02:57]} 3. e4 {[%clk 0:02:55]}  e5 {[%clk 0:02:58]} 4. Nf3 {[%clk 0:02:54]}  Nc6 {[%clk 0:02:58]} 5. Be2 {[%clk 0:02:54]}  Be7 {[%clk 0:02:53]} 6. O-O {[%clk 0:02:53]}  O-O {[%clk 0:02:53]} 7. d4 {[%clk 0:02:54]}  exd4 {[%clk 0:02:54]} 8. Nxd4 {[%clk 0:02:54]}  d6 {[%clk 0:02:54]} 9. Be3 {[%clk 0:02:51]}  Be6 {[%clk 0:02:51]} 10. f3 {[%clk 0:02:49]}  Re8 {[%clk 0:02:49]} 11. Qd2 {[%clk 0:02:47]}  Bf8 {[%clk 0:02:49]} 12. Nd5 {[%clk 0:02:44]}  Nxd4 {[%clk 0:02:47]} 13. Bxd4 {[%clk 0:02:44]}  Nd7 {[%clk 0:02:46]} 14. Rad1 {[%clk 0:02:41]}  c6 {[%clk 0:02:46]} 15. Nf4 {[%clk 0:02:40]}  Ne5 {[%clk 0:02:41]} 16. Nxe6 {[%clk 0:02:35]}  fxe6 {[%clk 0:02:40]} 17. c5 {[%clk 0:02:29]}  Nf7 {[%clk 0:02:37]} 18. cxd6 {[%clk 0:02:29]}  Bxd6 {[%clk 0:02:37]} 19. Qc3 {[%clk 0:02:25]}  Qh4 {[%clk 0:02:34]} 20. f4 {[%clk 0:02:19]}  e5 {[%clk 0:02:33]} 21. fxe5 {[%clk 0:02:11]}  Bxe5 {[%clk 0:02:30]} 22. g3 {[%clk 0:02:08]}  Bxd4+ {[%clk 0:02:15]} 23. Rxd4 {[%clk 0:01:51]}  Qg5 {[%clk 0:02:16]} 24. Bc4 {[%clk 0:01:01]}  Re7 {[%clk 0:02:15]} 25. Rxf7 {[%clk 0:00:49]}  Rxf7 {[%clk 0:02:16]} 26. Rd7 {[%clk 0:00:34]}  Rf8 {[%clk 0:02:04]} 27. Rxb7 {[%clk 0:00:33]}  Qc5+ {[%clk 0:01:50]} 28. Kh1 {[%clk 0:00:31]}  Qf2 {[%clk 0:01:49]} 29. Bxf7+ {[%clk 0:00:23]}  Rxf7 {[%clk 0:01:36]} 30. Rb8+ {[%clk 0:00:23]}  Rf8 {[%clk 0:01:37]} 31. Qc4+ {[%clk 0:00:23]}  Kh8 {[%clk 0:01:38]} 32. Rxf8+ {[%clk 0:00:23]}  Qxf8 {[%clk 0:01:37]} 33. Kg2 {[%clk 0:00:24]}  Qf6 {[%clk 0:01:35]} 34. Qc3 {[%clk 0:00:21]}  Qe6 {[%clk 0:01:35]} 35. Qd4 {[%clk 0:00:21]}  h6 {[%clk 0:01:34]} 36. b3 {[%clk 0:00:21]}  a5 {[%clk 0:01:30]} 37. h4 {[%clk 0:00:17]}  Qg4 {[%clk 0:01:23]} 38. Qd8+ {[%clk 0:00:16]}  Kh7 {[%clk 0:01:23]} 39. Qd3 {[%clk 0:00:16]}  Kh8 {[%clk 0:01:19]} 40. Qf3 {[%clk 0:00:15]}  Qd7 {[%clk 0:01:15]} 41. Qf8+ {[%clk 0:00:15]}  Kh7 {[%clk 0:01:15]} 42. Qf5+ {[%clk 0:00:16]} 1-0


[Site "https://www.chess.com"]

[Event "Titled Tuesday Blitz April 11 Late 2023"]
[White "Pakleza, Zbigniew"]
[Black "Kollars, Dmitrij"]
[WhiteFideId "1119290"]
[BlackFideId "12909572"]
[WhiteElo "2410"]
[BlackElo "2584"]
[Result "0-1"]
[Round "09"]
[TimeControl "180+2"]
[Date "2023.04.11"]
[WhiteClock "0:00:05"]
[BlackClock "0:00:07"]

1. d4 {[%clk 0:03:00]}  Nf6 {[%clk 0:02:53]} 2. Nf3 {[%clk 0:03:01]}  e6 {[%clk 0:02:51]} 3. Bf4 {[%clk 0:03:01]}  c5 {[%clk 0:02:51]} 4. c3 {[%clk 0:03:01]}  h6 {[%clk 0:02:51]} 5. e3 {[%clk 0:03:00]}  Nc6 {[%clk 0:02:51]} 6. Nbd2 {[%clk 0:02:59]}  b6 {[%clk 0:02:47]} 7. h3 {[%clk 0:02:58]}  Bb7 {[%clk 0:02:46]} 8. Nc4 {[%clk 0:02:55]}  d5 {[%clk 0:02:24]} 9. Nce5 {[%clk 0:02:54]}  a6 {[%clk 0:02:19]} 10. Nxc6 {[%clk 0:02:47]}  Bxc6 {[%clk 0:02:20]} 11. Ne5 {[%clk 0:02:48]}  Qc8 {[%clk 0:02:19]} 12. Bd3 {[%clk 0:02:39]}  Be7 {[%clk 0:02:16]} 13. O-O {[%clk 0:02:37]}  O-O {[%clk 0:02:11]} 14. Nxc6 {[%clk 0:02:13]}  Qxc6 {[%clk 0:02:12]} 15. Qe2 {[%clk 0:02:12]}  b5 {[%clk 0:02:08]} 16. Rfd1 {[%clk 0:01:38]}  c4 {[%clk 0:02:03]} 17. Bc2 {[%clk 0:01:38]}  b4 {[%clk 0:02:04]} 18. Rdb1 {[%clk 0:01:21]}  a5 {[%clk 0:02:01]} 19. Qd1 {[%clk 0:01:10]}  a4 {[%clk 0:01:58]} 20. cxb4 {[%clk 0:01:08]}  Bxb4 {[%clk 0:01:58]} 21. a3 {[%clk 0:01:08]}  Be7 {[%clk 0:01:56]} 22. Rc1 {[%clk 0:00:55]}  Ra7 {[%clk 0:01:43]} 23. Rab1 {[%clk 0:00:52]}  Rfa8 {[%clk 0:01:42]} 24. Be5 {[%clk 0:00:49]}  Nd7 {[%clk 0:01:39]} 25. Bg3 {[%clk 0:00:47]}  Bd6 {[%clk 0:01:38]} 26. Bxd6 {[%clk 0:00:45]}  Qxd6 {[%clk 0:01:39]} 27. e4 {[%clk 0:00:46]}  Nb8 {[%clk 0:01:28]} 28. exd5 {[%clk 0:00:40]}  exd5 {[%clk 0:01:29]} 29. Qh5 {[%clk 0:00:30]}  Nc6 {[%clk 0:01:26]} 30. Rd1 {[%clk 0:00:29]}  Rb8 {[%clk 0:01:21]} 31. Rd2 {[%clk 0:00:26]}  Qf4 {[%clk 0:01:14]} 32. Rbd1 {[%clk 0:00:23]}  Qg5 {[%clk 0:01:14]} 33. Qf3 {[%clk 0:00:19]}  g6 {[%clk 0:01:09]} 34. Qc3 {[%clk 0:00:19]}  Qf6 {[%clk 0:01:05]} 35. Re1 {[%clk 0:00:17]}  Kg7 {[%clk 0:01:04]} 36. g3 {[%clk 0:00:15]}  h5 {[%clk 0:00:57]} 37. h4 {[%clk 0:00:15]}  Rbb7 {[%clk 0:00:52]} 38. Kg2 {[%clk 0:00:16]}  Re7 {[%clk 0:00:42]} 39. Re3 {[%clk 0:00:16]}  Rxe3 {[%clk 0:00:40]} 40. Qxe3 {[%clk 0:00:17]}  Nd8 {[%clk 0:00:31]} 41. Qe2 {[%clk 0:00:10]}  Ne6 {[%clk 0:00:30]} 42. Qd1 {[%clk 0:00:11]}  g5 {[%clk 0:00:23]} 43. Qxh5 {[%clk 0:00:11]}  gxh4 {[%clk 0:00:18]} 44. Re2 {[%clk 0:00:09]}  Qh6 {[%clk 0:00:11]} 45. Qg4+ {[%clk 0:00:05]}  Kf8 {[%clk 0:00:12]} 46. Bf5 {[%clk 0:00:04]}  hxg3 {[%clk 0:00:10]} 47. Bxe6 {[%clk 0:00:03]}  Qh2+ {[%clk 0:00:10]} 48. Kf3 {[%clk 0:00:04]}  fxe6 {[%clk 0:00:07]} 49. Qxg3 {[%clk 0:00:02]}  Rf7+ {[%clk 0:00:07]} 50. Ke3 {[%clk 0:00:03]}  Qh6+ {[%clk 0:00:07]} 51. f4 {[%clk 0:00:03]}  Rg7 {[%clk 0:00:07]} 52. Qh2 {[%clk 0:00:03]}  Qg6 {[%clk 0:00:06]} 53. Kd2 {[%clk 0:00:02]}  Qd3+ {[%clk 0:00:07]} 54. Ke1 {[%clk 0:00:03]}  Qb1+ {[%clk 0:00:06]} 55. Kf2 {[%clk 0:00:03]}  Qf5 {[%clk 0:00:06]} 56. Qh6 {[%clk 0:00:02]}  Kf7 {[%clk 0:00:05]} 57. Re3 {[%clk 0:00:02]}  Qc2+ {[%clk 0:00:05]} 58. Re2 {[%clk 0:00:02]}  Qf5 {[%clk 0:00:06]} 59. Re3 {[%clk 0:00:03]}  Rh7 {[%clk 0:00:06]} 60. Qg5 {[%clk 0:00:03]}  Rh2+ {[%clk 0:00:06]} 61. Kg1 {[%clk 0:00:03]}  Qxg5+ {[%clk 0:00:06]} 62. fxg5 {[%clk 0:00:04]}  Rxb2 {[%clk 0:00:07]} 63. Rf3+ {[%clk 0:00:05]}  Kg6 {[%clk 0:00:07]} 64. Rf6+ {[%clk 0:00:05]}  Kxg5 {[%clk 0:00:07]} 65. Rxe6 {[%clk 0:00:06]}  c3 {[%clk 0:00:07]} 66. Rc6 {[%clk 0:00:04]}  c2 {[%clk 0:00:07]} 67. Kf2 {[%clk 0:00:05]}  c1=Q+ {[%clk 0:00:07]} 0-1


[Site "https://www.chess.com"]

[Event "Titled Tuesday Blitz April 11 Late 2023"]
[White "Kamsky, Gata"]
[Black "Mortazavi, Ali"]
[WhiteFideId "2000024"]
[BlackFideId "401323"]
[WhiteElo "2660"]
[BlackElo "2339"]
[Result "1-0"]
[Round "09"]
[TimeControl "180+2"]
[Date "2023.04.11"]
[WhiteClock "0:00:58"]
[BlackClock "0:00:06"]

1. d4 {[%clk 0:02:57]}  Nf6 {[%clk 0:02:59]} 2. Bf4 {[%clk 0:02:55]}  g6 {[%clk 0:02:58]} 3. c3 {[%clk 0:02:54]}  Bg7 {[%clk 0:02:58]} 4. Nf3 {[%clk 0:02:54]}  O-O {[%clk 0:02:59]} 5. Nbd2 {[%clk 0:02:53]}  d6 {[%clk 0:03:00]} 6. h3 {[%clk 0:02:53]}  c5 {[%clk 0:02:59]} 7. dxc5 {[%clk 0:02:52]}  dxc5 {[%clk 0:02:59]} 8. e4 {[%clk 0:02:53]}  Nc6 {[%clk 0:02:53]} 9. Be2 {[%clk 0:02:52]}  b6 {[%clk 0:02:36]} 10. O-O {[%clk 0:02:51]}  Bb7 {[%clk 0:02:37]} 11. Re1 {[%clk 0:02:50]}  Nd7 {[%clk 0:02:24]} 12. a4 {[%clk 0:02:41]}  Nde5 {[%clk 0:02:21]} 13. Qc2 {[%clk 0:02:27]}  e6 {[%clk 0:01:39]} 14. Nc4 {[%clk 0:02:19]}  Nxc4 {[%clk 0:01:36]} 15. Bxc4 {[%clk 0:02:18]}  Na5 {[%clk 0:01:15]} 16. Rad1 {[%clk 0:02:00]}  Qc8 {[%clk 0:01:15]} 17. Bf1 {[%clk 0:01:54]}  h6 {[%clk 0:01:12]} 18. h4 {[%clk 0:01:50]}  a6 {[%clk 0:01:08]} 19. Ne5 {[%clk 0:01:41]}  Rd8 {[%clk 0:01:01]} 20. Ng4 {[%clk 0:01:28]}  Kh7 {[%clk 0:00:44]} 21. e5 {[%clk 0:01:23]}  c4 {[%clk 0:00:34]} 22. h5 {[%clk 0:01:19]}  Qc6 {[%clk 0:00:26]} 23. hxg6+ {[%clk 0:01:16]}  fxg6 {[%clk 0:00:26]} 24. Nf6+ {[%clk 0:01:16]}  Bxf6 {[%clk 0:00:27]} 25. exf6 {[%clk 0:01:16]}  Rf8 {[%clk 0:00:23]} 26. Rd6 {[%clk 0:01:13]}  Qc5 {[%clk 0:00:20]} 27. Rexe6 {[%clk 0:01:09]}  Rf7 {[%clk 0:00:20]} 28. Be3 {[%clk 0:01:06]}  Qh5 {[%clk 0:00:17]} 29. Bxb6 {[%clk 0:01:04]}  Nb3 {[%clk 0:00:17]} 30. Qe2 {[%clk 0:01:01]}  Qxe2 {[%clk 0:00:11]} 31. Bxe2 {[%clk 0:01:01]}  Raf8 {[%clk 0:00:08]} 32. Bxc4 {[%clk 0:01:01]}  Rxf6 {[%clk 0:00:08]} 33. Bxb3 {[%clk 0:00:59]}  Rxe6 {[%clk 0:00:06]} 34. Rd7+ {[%clk 0:00:58]} 1-0


[Site "https://www.chess.com"]

[Event "Titled Tuesday Blitz April 11 Late 2023"]
[White "Leitao, Rafael"]
[Black "Bortnyk, Olexandr"]
[WhiteFideId "2101246"]
[BlackFideId "14120828"]
[WhiteElo "2609"]
[BlackElo "2734"]
[Result "0-1"]
[Round "09"]
[TimeControl "180+2"]
[Date "2023.04.11"]
[WhiteClock "0:01:26"]
[BlackClock "0:02:35"]

1. c4 {[%clk 0:03:00]}  d6 {[%clk 0:02:59]} 2. Nc3 {[%clk 0:03:00]}  Nf6 {[%clk 0:02:58]} 3. g3 {[%clk 0:03:00]}  g6 {[%clk 0:02:59]} 4. Bg2 {[%clk 0:03:00]}  Bg7 {[%clk 0:03:00]} 5. d4 {[%clk 0:03:00]}  O-O {[%clk 0:03:01]} 6. Nf3 {[%clk 0:03:00]}  Bf5 {[%clk 0:03:01]} 7. O-O {[%clk 0:02:59]}  Ne4 {[%clk 0:03:02]} 8. Nxe4 {[%clk 0:02:48]}  Bxe4 {[%clk 0:03:03]} 9. Be3 {[%clk 0:02:48]}  c6 {[%clk 0:02:57]} 10. Qd2 {[%clk 0:02:47]}  d5 {[%clk 0:02:57]} 11. Bh6 {[%clk 0:02:10]}  Bxh6 {[%clk 0:02:50]} 12. Qxh6 {[%clk 0:02:09]}  Bxf3 {[%clk 0:02:51]} 13. Bxf3 {[%clk 0:02:06]}  dxc4 {[%clk 0:02:51]} 14. Rfd1 {[%clk 0:02:01]}  e6 {[%clk 0:02:52]} 15. Rac1 {[%clk 0:01:59]}  Qa5 {[%clk 0:02:47]} 16. a3 {[%clk 0:01:56]}  Qb5 {[%clk 0:02:46]} 17. Rc2 {[%clk 0:01:36]}  Nd7 {[%clk 0:02:47]} 18. h4 {[%clk 0:01:36]}  Rad8 {[%clk 0:02:44]} 19. h5 {[%clk 0:01:36]}  Nf6 {[%clk 0:02:42]} 20. hxg6 {[%clk 0:01:35]}  fxg6 {[%clk 0:02:37]} 21. e3 {[%clk 0:01:26]}  Qf5 {[%clk 0:02:35]} 0-1


[Site "https://www.chess.com"]

[Event "Titled Tuesday Blitz April 11 Late 2023"]
[White "Hambleton, Aman"]
[Black "Anton Guijarro, David"]
[WhiteFideId "2606577"]
[BlackFideId "2285525"]
[WhiteElo "2511"]
[BlackElo "2618"]
[Result "1-0"]
[Round "09"]
[TimeControl "180+2"]
[Date "2023.04.11"]
[WhiteClock "0:00:03"]
[BlackClock "0:00:04"]

1. d4 {[%clk 0:02:59]}  d6 {[%clk 0:02:59]} 2. e4 {[%clk 0:02:56]}  g6 {[%clk 0:02:59]} 3. c4 {[%clk 0:02:53]}  Bg7 {[%clk 0:02:59]} 4. Nc3 {[%clk 0:02:51]}  Nf6 {[%clk 0:03:00]} 5. f3 {[%clk 0:02:51]}  O-O {[%clk 0:02:58]} 6. Be3 {[%clk 0:02:51]}  a6 {[%clk 0:02:52]} 7. Qd2 {[%clk 0:02:42]}  Nc6 {[%clk 0:02:52]} 8. Nge2 {[%clk 0:02:41]}  Rb8 {[%clk 0:02:49]} 9. Rc1 {[%clk 0:02:39]}  Bd7 {[%clk 0:02:48]} 10. Nd1 {[%clk 0:02:38]}  e6 {[%clk 0:02:35]} 11. Nf2 {[%clk 0:02:10]}  b5 {[%clk 0:02:27]} 12. c5 {[%clk 0:02:10]}  b4 {[%clk 0:02:26]} 13. Bg5 {[%clk 0:01:48]}  e5 {[%clk 0:01:57]} 14. d5 {[%clk 0:01:37]}  Nd4 {[%clk 0:01:57]} 15. Nxd4 {[%clk 0:01:14]}  exd4 {[%clk 0:01:58]} 16. c6 {[%clk 0:01:14]}  Bc8 {[%clk 0:01:58]} 17. Qf4 {[%clk 0:00:28]}  Re8 {[%clk 0:01:19]} 18. Be2 {[%clk 0:00:19]}  a5 {[%clk 0:01:02]} 19. Qh4 {[%clk 0:00:17]}  Re5 {[%clk 0:00:19]} 20. Nd3 {[%clk 0:00:03]}  h6 {[%clk 0:00:13]} 21. Bd2 {[%clk 0:00:03]}  Rh5 {[%clk 0:00:07]} 22. Qf2 {[%clk 0:00:03]}  Qe8 {[%clk 0:00:04]} 23. Nf4 {[%clk 0:00:02]}  Re5 {[%clk 0:00:03]} 24. Nd3 {[%clk 0:00:03]}  Nxe4 {[%clk 0:00:03]} 25. fxe4 {[%clk 0:00:02]}  Rxe4 {[%clk 0:00:04]} 26. Kf1 {[%clk 0:00:03]}  Ba6 {[%clk 0:00:05]} 27. Re1 {[%clk 0:00:01]}  Rxe2 {[%clk 0:00:04]} 28. Qxe2 {[%clk 0:00:02]}  Qxe2+ {[%clk 0:00:04]} 29. Rxe2 {[%clk 0:00:02]}  Re8 {[%clk 0:00:04]} 30. Rxe8+ {[%clk 0:00:03]} 1-0


[Site "https://www.chess.com"]

[Event "Titled Tuesday Blitz April 11 Late 2023"]
[White "Di Berardino, Diego Rafael"]
[Black "Corrales Jimenez, Fidel"]
[WhiteFideId "2105446"]
[BlackFideId "3506690"]
[WhiteElo "2432"]
[BlackElo "2541"]
[Result "0-1"]
[Round "09"]
[TimeControl "180+2"]
[Date "2023.04.11"]
[WhiteClock "0:00:07"]
[BlackClock "0:00:17"]

1. e4 {[%clk 0:02:58]}  c6 {[%clk 0:02:20]} 2. d4 {[%clk 0:02:57]}  d5 {[%clk 0:02:19]} 3. exd5 {[%clk 0:02:58]}  cxd5 {[%clk 0:02:20]} 4. c4 {[%clk 0:02:58]}  Nf6 {[%clk 0:02:18]} 5. Nc3 {[%clk 0:02:59]}  e6 {[%clk 0:02:19]} 6. Nf3 {[%clk 0:02:58]}  Be7 {[%clk 0:02:19]} 7. cxd5 {[%clk 0:02:57]}  Nxd5 {[%clk 0:02:20]} 8. Bd3 {[%clk 0:02:58]}  Nc6 {[%clk 0:02:19]} 9. O-O {[%clk 0:02:58]}  Nf6 {[%clk 0:02:19]} 10. Re1 {[%clk 0:02:55]}  O-O {[%clk 0:02:20]} 11. a3 {[%clk 0:02:54]}  b6 {[%clk 0:02:20]} 12. Bc2 {[%clk 0:02:54]}  Bb7 {[%clk 0:02:21]} 13. Qd3 {[%clk 0:02:53]}  Re8 {[%clk 0:02:17]} 14. Bg5 {[%clk 0:02:49]}  g6 {[%clk 0:02:16]} 15. Rad1 {[%clk 0:02:44]}  Nd5 {[%clk 0:02:14]} 16. Bh6 {[%clk 0:02:26]}  Bf6 {[%clk 0:02:11]} 17. Ne4 {[%clk 0:02:09]}  Bg7 {[%clk 0:02:10]} 18. Bxg7 {[%clk 0:01:51]}  Kxg7 {[%clk 0:02:11]} 19. Ne5 {[%clk 0:01:51]}  Rc8 {[%clk 0:01:59]} 20. Ba4 {[%clk 0:01:47]}  Qh4 {[%clk 0:01:36]} 21. Nd6 {[%clk 0:01:23]}  Nxe5 {[%clk 0:01:33]} 22. dxe5 {[%clk 0:01:22]}  Qxa4 {[%clk 0:01:34]} 23. Nxb7 {[%clk 0:01:17]}  Re7 {[%clk 0:00:37]} 24. Nd6 {[%clk 0:01:16]}  Rc2 {[%clk 0:00:37]} 25. Qf3 {[%clk 0:01:10]}  Qf4 {[%clk 0:00:36]} 26. Qxf4 {[%clk 0:00:50]}  Nxf4 {[%clk 0:00:37]} 27. Re4 {[%clk 0:00:43]}  Nd5 {[%clk 0:00:34]} 28. g3 {[%clk 0:00:32]}  g5 {[%clk 0:00:29]} 29. b4 {[%clk 0:00:29]}  Kg6 {[%clk 0:00:29]} 30. Rde1 {[%clk 0:00:15]}  Rec7 {[%clk 0:00:28]} 31. h4 {[%clk 0:00:14]}  h6 {[%clk 0:00:28]} 32. hxg5 {[%clk 0:00:14]}  hxg5 {[%clk 0:00:28]} 33. Rg4 {[%clk 0:00:12]}  Rc1 {[%clk 0:00:26]} 34. Rxc1 {[%clk 0:00:11]}  Rxc1+ {[%clk 0:00:26]} 35. Kg2 {[%clk 0:00:11]}  Rc2 {[%clk 0:00:27]} 36. Kf3 {[%clk 0:00:10]}  Rc3+ {[%clk 0:00:23]} 37. Kg2 {[%clk 0:00:11]}  Rxa3 {[%clk 0:00:24]} 38. Ne4 {[%clk 0:00:10]}  Kf5 {[%clk 0:00:21]} 39. Kh3 {[%clk 0:00:09]}  Kxe5 {[%clk 0:00:20]} 40. Nxg5 {[%clk 0:00:08]}  f5 {[%clk 0:00:19]} 41. Rh4 {[%clk 0:00:08]}  f4 {[%clk 0:00:17]} 42. Rh6 {[%clk 0:00:07]}  fxg3 {[%clk 0:00:17]} 43. fxg3 {[%clk 0:00:08]}  Kf5 {[%clk 0:00:18]} 44. Nxe6 {[%clk 0:00:08]}  Ra1 {[%clk 0:00:16]} 45. Nd4+ {[%clk 0:00:08]}  Ke4 {[%clk 0:00:17]} 46. Nc6 {[%clk 0:00:08]}  Rh1+ {[%clk 0:00:16]} 47. Kg2 {[%clk 0:00:07]}  Rxh6 {[%clk 0:00:17]} 0-1


[Site "https://www.chess.com"]

[Event "Titled Tuesday Blitz April 11 Late 2023"]
[White "Ibarra Jerez, Jose Carlos"]
[Black "Rastbod, Ali"]
[WhiteFideId "2226332"]
[BlackFideId "12567477"]
[WhiteElo "2638"]
[BlackElo "2248"]
[Result "1-0"]
[Round "09"]
[TimeControl "180+2"]
[Date "2023.04.11"]
[WhiteClock "0:02:22"]
[BlackClock "0:01:47"]

1. d4 {[%clk 0:03:00]}  Nf6 {[%clk 0:02:57]} 2. Bf4 {[%clk 0:03:01]}  d5 {[%clk 0:02:52]} 3. e3 {[%clk 0:03:00]}  c5 {[%clk 0:02:52]} 4. c3 {[%clk 0:02:49]}  Nc6 {[%clk 0:02:50]} 5. Nd2 {[%clk 0:02:48]}  cxd4 {[%clk 0:02:48]} 6. exd4 {[%clk 0:02:48]}  Bg4 {[%clk 0:02:48]} 7. Qb3 {[%clk 0:02:45]}  Qd7 {[%clk 0:02:48]} 8. Ngf3 {[%clk 0:02:44]}  e6 {[%clk 0:01:48]} 9. Ne5 {[%clk 0:02:43]}  Qc8 {[%clk 0:01:48]} 10. Bb5 {[%clk 0:02:25]}  Nd7 {[%clk 0:01:47]} 11. Nxg4 {[%clk 0:02:22]} 1-0


[Site "https://www.chess.com"]

[Event "Titled Tuesday Blitz April 11 Late 2023"]
[White "Coenen, Michael"]
[Black "Grigorjev, Iljya"]
[WhiteFideId "4697367"]
[BlackFideId "24159565"]
[WhiteElo "2328"]
[BlackElo "2323"]
[Result "0-1"]
[Round "09"]
[TimeControl "180+2"]
[Date "2023.04.11"]
[WhiteClock "0:00:12"]
[BlackClock "0:00:27"]

1. Nf3 {[%clk 0:03:00]}  Nf6 {[%clk 0:03:00]} 2. g3 {[%clk 0:03:00]}  g6 {[%clk 0:03:00]} 3. Bg2 {[%clk 0:03:01]}  Bg7 {[%clk 0:03:01]} 4. O-O {[%clk 0:03:02]}  O-O {[%clk 0:03:02]} 5. d4 {[%clk 0:03:02]}  d5 {[%clk 0:03:02]} 6. c4 {[%clk 0:03:01]}  Nc6 {[%clk 0:03:02]} 7. cxd5 {[%clk 0:03:00]}  Nxd5 {[%clk 0:03:03]} 8. Nc3 {[%clk 0:02:59]}  Nb6 {[%clk 0:03:03]} 9. e3 {[%clk 0:02:57]}  Re8 {[%clk 0:03:03]} 10. h3 {[%clk 0:02:54]}  a5 {[%clk 0:03:02]} 11. Qe2 {[%clk 0:02:49]}  e5 {[%clk 0:03:01]} 12. dxe5 {[%clk 0:02:49]}  Nxe5 {[%clk 0:03:02]} 13. Nxe5 {[%clk 0:02:46]}  Bxe5 {[%clk 0:03:03]} 14. Rd1 {[%clk 0:02:46]}  Qe7 {[%clk 0:03:03]} 15. e4 {[%clk 0:02:40]}  Bd7 {[%clk 0:02:37]} 16. Be3 {[%clk 0:02:39]}  Bc6 {[%clk 0:02:21]} 17. Rac1 {[%clk 0:02:38]}  a4 {[%clk 0:02:09]} 18. Nd5 {[%clk 0:02:32]}  Bxd5 {[%clk 0:02:02]} 19. exd5 {[%clk 0:02:33]}  Qb4 {[%clk 0:01:49]} 20. Rc2 {[%clk 0:02:22]}  Rad8 {[%clk 0:01:44]} 21. a3 {[%clk 0:01:43]}  Qd6 {[%clk 0:01:43]} 22. Qb5 {[%clk 0:01:33]}  Bxg3 {[%clk 0:01:34]} 23. Bc5 {[%clk 0:01:12]}  Bh2+ {[%clk 0:01:32]} 24. Kh1 {[%clk 0:01:13]}  Qe5 {[%clk 0:01:20]} 25. Bxb6 {[%clk 0:01:06]}  cxb6 {[%clk 0:01:21]} 26. Qxb6 {[%clk 0:01:06]}  Bf4 {[%clk 0:01:18]} 27. Qxb7 {[%clk 0:00:51]}  Qf5 {[%clk 0:01:18]} 28. Rc3 {[%clk 0:00:42]}  Rb8 {[%clk 0:01:08]} 29. Qc6 {[%clk 0:00:41]}  Rec8 {[%clk 0:01:03]} 30. Qxa4 {[%clk 0:00:41]}  Rxc3 {[%clk 0:01:03]} 31. bxc3 {[%clk 0:00:42]}  Bd6 {[%clk 0:01:01]} 32. Qe4 {[%clk 0:00:39]}  Qf6 {[%clk 0:01:01]} 33. c4 {[%clk 0:00:39]}  Qxf2 {[%clk 0:01:00]} 34. Qf3 {[%clk 0:00:34]}  Qb2 {[%clk 0:00:54]} 35. Rf1 {[%clk 0:00:32]}  Rf8 {[%clk 0:00:44]} 36. Qe3 {[%clk 0:00:31]}  Qc2 {[%clk 0:00:36]} 37. Rc1 {[%clk 0:00:29]}  Qf5 {[%clk 0:00:33]} 38. c5 {[%clk 0:00:29]}  Bf4 {[%clk 0:00:34]} 39. Qe1 {[%clk 0:00:27]}  Bxc1 {[%clk 0:00:33]} 40. Qxc1 {[%clk 0:00:28]}  Re8 {[%clk 0:00:30]} 41. d6 {[%clk 0:00:23]}  Qf2 {[%clk 0:00:31]} 42. d7 {[%clk 0:00:19]}  Re1+ {[%clk 0:00:30]} 43. Kh2 {[%clk 0:00:17]}  Rxc1 {[%clk 0:00:26]} 44. d8=Q+ {[%clk 0:00:17]}  Kg7 {[%clk 0:00:26]} 45. Qd6 {[%clk 0:00:15]}  Qg1+ {[%clk 0:00:26]} 46. Kg3 {[%clk 0:00:15]}  Rc3+ {[%clk 0:00:27]} 47. Kh4 {[%clk 0:00:12]}  Qf2+ {[%clk 0:00:27]} 0-1


[Site "https://www.chess.com"]

[Event "Titled Tuesday Blitz April 11 Late 2023"]
[White "Zarnicki, Pablo"]
[Black "Gharibyan, Mamikon"]
[WhiteFideId "100137"]
[BlackFideId "13308300"]
[WhiteElo "2468"]
[BlackElo "2445"]
[Result "1-0"]
[Round "09"]
[TimeControl "180+2"]
[Date "2023.04.11"]
[WhiteClock "0:00:28"]
[BlackClock "0:00:06"]

1. e4 {[%clk 0:02:59]}  e5 {[%clk 0:02:58]} 2. Nc3 {[%clk 0:02:57]}  Nf6 {[%clk 0:02:57]} 3. g3 {[%clk 0:02:57]}  c6 {[%clk 0:02:58]} 4. Nf3 {[%clk 0:02:55]}  d5 {[%clk 0:02:56]} 5. exd5 {[%clk 0:02:51]}  e4 {[%clk 0:02:55]} 6. Nd4 {[%clk 0:02:46]}  Bc5 {[%clk 0:02:32]} 7. Nb3 {[%clk 0:02:45]}  Bb6 {[%clk 0:02:24]} 8. Bg2 {[%clk 0:02:45]}  Bg4 {[%clk 0:02:16]} 9. f3 {[%clk 0:02:35]}  exf3 {[%clk 0:02:15]} 10. Bxf3 {[%clk 0:02:35]}  h5 {[%clk 0:01:43]} 11. d4 {[%clk 0:02:32]}  Qe7+ {[%clk 0:01:24]} 12. Kf2 {[%clk 0:02:17]}  O-O {[%clk 0:01:20]} 13. h3 {[%clk 0:02:14]}  Bxf3 {[%clk 0:01:09]} 14. Qxf3 {[%clk 0:02:14]}  Nxd5 {[%clk 0:01:06]} 15. Nxd5 {[%clk 0:02:05]}  cxd5 {[%clk 0:01:05]} 16. Re1 {[%clk 0:01:56]}  Qd7 {[%clk 0:00:58]} 17. Qxh5 {[%clk 0:01:54]}  Nc6 {[%clk 0:00:57]} 18. c3 {[%clk 0:01:53]}  Rae8 {[%clk 0:00:51]} 19. Bf4 {[%clk 0:01:51]}  a5 {[%clk 0:00:36]} 20. Rxe8 {[%clk 0:01:47]}  Rxe8 {[%clk 0:00:35]} 21. Re1 {[%clk 0:01:47]}  Rc8 {[%clk 0:00:31]} 22. Qg4 {[%clk 0:01:43]}  f5 {[%clk 0:00:20]} 23. Qg6 {[%clk 0:01:42]}  a4 {[%clk 0:00:20]} 24. Nc1 {[%clk 0:01:15]}  a3 {[%clk 0:00:20]} 25. bxa3 {[%clk 0:01:13]}  Ba5 {[%clk 0:00:19]} 26. Re3 {[%clk 0:00:58]}  Ne7 {[%clk 0:00:14]} 27. Qd6 {[%clk 0:00:52]}  Qxd6 {[%clk 0:00:10]} 28. Bxd6 {[%clk 0:00:53]}  Ng6 {[%clk 0:00:10]} 29. Bb4 {[%clk 0:00:52]}  Bc7 {[%clk 0:00:10]} 30. Nd3 {[%clk 0:00:52]}  Kf7 {[%clk 0:00:08]} 31. a4 {[%clk 0:00:52]}  b6 {[%clk 0:00:08]} 32. h4 {[%clk 0:00:50]}  f4 {[%clk 0:00:06]} 33. gxf4 {[%clk 0:00:49]}  Nxh4 {[%clk 0:00:06]} 34. Ne5+ {[%clk 0:00:39]}  Kf6 {[%clk 0:00:05]} 35. Nd7+ {[%clk 0:00:36]}  Kf5 {[%clk 0:00:06]} 36. Re7 {[%clk 0:00:33]}  Bxf4 {[%clk 0:00:06]} 37. Rxg7 {[%clk 0:00:32]}  Ra8 {[%clk 0:00:05]} 38. Nxb6 {[%clk 0:00:31]}  Re8 {[%clk 0:00:06]} 39. Rf7+ {[%clk 0:00:31]}  Ke4 {[%clk 0:00:06]} 40. Nxd5 {[%clk 0:00:29]}  Bd2 {[%clk 0:00:05]} 41. Nf6+ {[%clk 0:00:29]}  Kd3 {[%clk 0:00:04]} 42. Nxe8 {[%clk 0:00:29]}  Be3+ {[%clk 0:00:05]} 43. Kg3 {[%clk 0:00:29]}  Ng6 {[%clk 0:00:06]} 44. Rf3 {[%clk 0:00:28]} 1-0


[Site "https://www.chess.com"]